bitfinex-derivatives/quotes_BTCF0:USTF0_20250710
["timestamp","ask_amount","ask_price","bid_price","bid_amount"]
[1752188799204,0.68907655,116130.0,116120.0,0.14218]
[1752188799404,0.68907655,116130.0,116120.0,0.07808]
[1752188799605,0.94004882,116130.0,116120.0,0.07808]
[1752188799807,0.94104882,116130.0,116120.0,0.07508]
[1752188800106,0.72037655,116130.0,116120.0,0.07508]
[1752188800308,0.72137655,116130.0,116120.0,0.07508]
[1752188800505,0.50928196,116130.0,116120.0,0.07508]
[1752188800712,0.72995423,116130.0,116120.0,0.10808]
[1752188802206,0.72137655,116130.0,116120.0,0.10808]
[1752188802410,0.69107655,116130.0,116120.0,0.10808]
[1752188802708,0.43321428,116130.0,116120.0,0.13828]
[1752188802901,0.44440428,116130.0,116120.0,0.13828]
[1752188803100,0.37599,116130.0,116120.0,0.13828]
[1752188803302,0.59666227,116130.0,116120.0,0.13828]
[1752188803501,0.37599,116130.0,116120.0,0.35895227]
[1752188803705,0.37599,116130.0,116120.0,0.13896]
[1752188803909,0.01519,116130.0,116120.0,0.13828]
[1752188804400,0.004,116130.0,116120.0,0.89196237]
[1752188804606,0.004,116130.0,116120.0,0.89268237]
[1752188804800,0.004,116130.0,116120.0,0.72047227]
[1752188805198,0.004,116130.0,116120.0,0.89268237]
[1752188805911,0.004,116130.0,116120.0,1.49752237]
[1752188807316,0.004,116130.0,116120.0,1.32531227]
[1752188807502,0.004,116130.0,116120.0,1.49752237]
[1752188808914,0.004,116130.0,116120.0,1.32531227]
[1752188809916,0.01519,116130.0,116120.0,1.10456]
[1752188810516,0.01519,116130.0,116120.0,1.32523227]
[1752188810701,0.004,116130.0,116120.0,1.32523227]
[1752188814611,0.004,116130.0,116120.0,1.10456]
[1752188814908,0.004,116130.0,116120.0,1.32523227]
[1752188815513,0.004,116130.0,116120.0,1.10456]
[1752188815719,0.004,116130.0,116120.0,1.34879433]
[1752188816212,0.004,116130.0,116120.0,1.52100453]
[1752188817013,0.003,116130.0,116120.0,1.52100453]
[1752188817218,0.3608,116160.0,116140.0,0.03144]
[1752188817517,0.6940467,116160.0,116150.0,0.68473]
[1752188817706,0.6940467,116160.0,116150.0,0.71551]
[1752188818310,0.40319,116160.0,116150.0,0.71551]
[1752188818506,0.01119,116160.0,116150.0,0.96838227]
[1752188818813,0.28567227,116170.0,116150.0,0.91973227]
[1752188819015,0.29686227,116170.0,116160.0,0.48877756]
[1752188819211,0.29686227,116170.0,116160.0,0.48949756]
[1752188819414,0.29686227,116170.0,116160.0,0.48649756]
[1752188819617,0.07619,116170.0,116160.0,0.12569756]
[1752188819818,0.43699,116170.0,116160.0,0.12497756]
[1752188820014,0.65766227,116170.0,116160.0,0.12497756]
[1752188820213,0.66066227,116170.0,116160.0,0.12497756]
[1752188820413,0.66066227,116170.0,116160.0,0.12097756]
[1752188820918,0.29986227,116170.0,116160.0,0.12097756]
[1752188821222,0.89133454,116170.0,116160.0,0.01778756]
[1752188821419,1.59167317,116170.0,116140.0,0.06655461]
[1752188821722,1.59167317,116170.0,116140.0,0.01790461]
[1752188821723,0.58147227,116150.0,116140.0,0.01790461]
[1752188822119,0.64337227,116150.0,116140.0,0.06655461]
[1752188822921,0.64337227,116150.0,116140.0,0.09899461]
[1752188825225,0.64337227,116150.0,116140.0,0.06755461]
[1752188828227,0.64337227,116150.0,116140.0,0.01890461]
[1752188828428,0.64437227,116150.0,116140.0,0.01890461]
[1752188829024,0.64437227,116150.0,116130.0,0.08009]
[1752188829229,0.64227227,116140.0,116130.0,0.08009]
[1752188830729,0.64227227,116140.0,116130.0,0.08109]
[1752188831531,0.65083227,116140.0,116130.0,0.08109]
[1752188833127,1.85963227,116140.0,116130.0,0.04965]
[1752188833322,1.49883227,116140.0,116130.0,0.04965]
[1752188833627,1.49883227,116140.0,116130.0,0.08109]
[1752188833931,1.27816,116140.0,116130.0,0.08109]
[1752188834326,1.85963227,116140.0,116130.0,0.08109]
[1752188834625,1.85963227,116140.0,116130.0,0.11199]
[1752188836330,1.85947227,116140.0,116130.0,0.11199]
[1752188837030,1.85091227,116140.0,116130.0,0.11199]
[1752188837226,1.82051227,116140.0,116130.0,0.14459]
[1752188837420,1.79011227,116140.0,116130.0,0.14459]
[1752188837626,1.56944,116140.0,116130.0,0.14459]
[1752188838229,0.64587227,116150.0,116130.0,0.31661227]
[1752188838230,1.63384,116150.0,116130.0,0.31661227]
[1752188838433,1.85451227,116150.0,116140.0,0.14409]
[1752188838732,1.8631617,116150.0,116140.0,0.14409]
[1752188839530,1.8310617,116150.0,116140.0,0.14409]
[1752188840133,1.8320617,116150.0,116140.0,0.14409]
[1752188840541,1.61138943,116150.0,116140.0,0.11309]
[1752188840839,1.8320617,116150.0,116140.0,0.11309]
[1752188841042,1.57044,116150.0,116140.0,0.11309]
[1752188841229,1.57044,116150.0,116140.0,0.14409]
[1752188841623,0.3618,116150.0,116140.0,0.36476227]
[1752188841831,0.3618,116150.0,116140.0,0.38327966]
[1752188842032,0.001,116150.0,116140.0,1.15970016]
[1752188842537,0.001,116150.0,116140.0,1.52050016]
[1752188843537,0.001,116150.0,116140.0,1.5305966]
[1752188843737,0.22067227,116160.0,116140.0,0.53350383]
[1752188843933,0.22067227,116160.0,116150.0,0.14078]
[1752188844725,0.22167227,116160.0,116150.0,0.14078]
[1752188846538,0.22267227,116160.0,116150.0,0.14078]
[1752188847638,0.25277227,116160.0,116150.0,0.10988]
[1752188848640,0.61357227,116160.0,116150.0,0.10988]
[1752188849036,0.86634454,116160.0,116150.0,0.10988]
[1752188849338,0.86634454,116160.0,116140.0,0.08003739]
[1752188849543,0.22067227,116150.0,116140.0,0.12931739]
[1752188849743,0.25077227,116150.0,116140.0,0.16251739]
[1752188849938,0.25077227,116150.0,116140.0,0.17598008]
[1752188850137,0.61157227,116150.0,116140.0,0.10031739]
[1752188850336,0.64367227,116150.0,116140.0,0.10031739]
[1752188851039,0.64367227,116150.0,116140.0,0.10131739]
[1752188851342,1.85171227,116150.0,116140.0,0.06811739]
[1752188853546,1.85171227,116150.0,116140.0,0.11558212]
[1752188853837,1.85171227,116150.0,116140.0,0.06811739]
[1752188857944,1.85171227,116150.0,116140.0,0.001]
[1752188861346,1.85171227,116150.0,116140.0,0.05028]
[1752188862349,1.85171227,116150.0,116140.0,0.08078]
[1752188864141,1.85171227,116150.0,116140.0,0.14528]
[1752188865952,1.81961227,116150.0,116140.0,0.14528]
[1752188866154,1.59894,116150.0,116140.0,0.14528]
[1752188866652,1.81961227,116150.0,116140.0,0.14528]
[1752188867254,0.61157227,116150.0,116140.0,0.14528]
[1752188867449,0.3608,116160.0,116150.0,0.04928]
[1752188867654,0.3608,116160.0,116150.0,0.33285227]
[1752188867848,0.96448,116160.0,116150.0,0.36453227]
[1752188868155,0.96448,116160.0,116150.0,0.14386]
[1752188868354,0.96448,116160.0,116150.0,0.14318]
[1752188868547,0.96648,116160.0,116150.0,0.14318]
[1752188869155,1.18715227,116160.0,116150.0,0.14318]
[1752188869355,1.18615227,116160.0,116150.0,0.14318]
[1752188869649,0.58247227,116160.0,116150.0,0.14318]
[1752188870457,0.58147227,116160.0,116150.0,0.14418]
[1752188871160,0.58147227,116160.0,116150.0,0.15764253]
[1752188871351,0.80214454,116160.0,116150.0,0.15764253]
[1752188871551,0.80214454,116160.0,116150.0,0.14418]
[1752188871847,0.58147227,116160.0,116150.0,0.14418]
[1752188872045,0.58147227,116160.0,116150.0,0.15764199]
[1752188872249,1.18503227,116160.0,116150.0,0.15764199]
[1752188872451,0.22067227,116160.0,116150.0,0.15764199]
[1752188874255,0.22067227,116160.0,116150.0,0.14418]
[1752188874462,0.22067227,116160.0,116150.0,0.1684089]
[1752188874655,0.22067227,116160.0,116150.0,0.15764162]
[1752188876259,0.22067227,116160.0,116150.0,0.14418]
[1752188876458,0.22067227,116160.0,116150.0,0.0949]
[1752188877159,0.22067227,116160.0,116150.0,0.14407]
[1752188877359,0.22067227,116160.0,116150.0,0.15753157]
[1752188877559,0.58147227,116160.0,116150.0,0.15753157]
[1752188877861,0.22067227,116160.0,116150.0,0.15753157]
[1752188878058,0.22067227,116160.0,116150.0,0.14407]
[1752188878562,0.22067227,116160.0,116150.0,0.15753156]
[1752188878759,0.22067227,116160.0,116150.0,0.14407]
[1752188880858,0.58147227,116160.0,116150.0,0.14407]
[1752188881065,0.22067227,116160.0,116150.0,0.14407]
[1752188881559,0.58147227,116160.0,116150.0,0.14407]
[1752188881761,0.22067227,116160.0,116150.0,0.14407]
[1752188882858,0.3608,116160.0,116150.0,0.14407]
[1752188883060,0.58147227,116160.0,116150.0,0.14407]
[1752188883458,0.22067227,116160.0,116150.0,0.14407]
[1752188883657,0.58147227,116160.0,116150.0,0.14407]
[1752188883956,0.58147227,116160.0,116150.0,0.11307]
[1752188884361,0.61257227,116160.0,116150.0,0.11307]
[1752188886265,0.61257227,116160.0,116150.0,0.14577]
[1752188886566,0.58147227,116160.0,116150.0,0.14577]
[1752188887261,0.3608,116160.0,116150.0,0.14577]
[1752188887464,1.03591832,116170.0,116160.0,0.08013]
[1752188887665,0.43279832,116170.0,116160.0,0.14333]
[1752188887866,0.07199832,116170.0,116160.0,0.14333]
[1752188888561,0.29367059,116170.0,116160.0,0.14333]
[1752188888756,0.07299832,116170.0,116160.0,0.14333]
[1752188889665,0.07399832,116170.0,116160.0,0.14333]
[1752188889964,0.29467059,116170.0,116160.0,0.14333]
[1752188890469,0.07399832,116170.0,116160.0,0.14333]
[1752188891268,0.004,116170.0,116160.0,0.14333]
[1752188892064,0.22467227,116170.0,116160.0,0.14333]
[1752188892561,0.004,116170.0,116160.0,0.14333]
[1752188893664,0.004,116170.0,116160.0,0.53615337]
[1752188893872,0.004,116170.0,116160.0,0.89771337]
[1752188894165,0.004,116170.0,116160.0,0.72556227]
[1752188894860,0.004,116170.0,116160.0,0.89771337]
[1752188895073,0.004,116170.0,116160.0,0.94515518]
[1752188895260,0.004,116170.0,116160.0,0.89771337]
[1752188896666,0.004,116170.0,116160.0,0.72556227]
[1752188898566,0.004,116170.0,116160.0,0.89771337]
[1752188898962,0.004,116170.0,116160.0,1.13791723]
[1752188901360,0.68136021,116200.0,116190.0,0.08013]
[1752188901564,0.71386021,116200.0,116190.0,0.08013]
[1752188902764,0.71886021,116200.0,116190.0,0.08013]
[1752188903763,0.71886021,116200.0,116190.0,0.11163]
[1752188903967,0.72186021,116200.0,116190.0,0.11163]
[1752188904467,0.73063327,116200.0,116190.0,0.11163]
[1752188904668,0.66004533,116200.0,116190.0,0.11163]
[1752188904868,0.65227227,116200.0,116190.0,0.11163]
[1752188905063,0.64727227,116200.0,116190.0,0.11163]
[1752188905263,0.64927227,116200.0,116190.0,0.11163]
[1752188910078,0.4286,116200.0,116190.0,0.11163]
[1752188910375,0.58447227,116200.0,116190.0,0.12942714]
[1752188910768,0.58447227,116200.0,116190.0,0.16102714]
[1752188911278,0.61677227,116200.0,116190.0,0.16102714]
[1752188911577,0.3638,116200.0,116190.0,0.16102714]
[1752188912265,0.58447227,116200.0,116190.0,0.16102714]
[1752188915872,0.61467227,116200.0,116190.0,0.16102714]
[1752188916375,0.61467227,116200.0,116190.0,0.12942714]
[1752188916576,0.64637227,116200.0,116190.0,0.12942714]
[1752188916771,0.64637227,116200.0,116190.0,0.09792714]
[1752188916979,0.64637227,116200.0,116190.0,0.06696714]
[1752188917477,0.86704454,116200.0,116190.0,0.01779714]
[1752188917980,0.64637227,116200.0,116180.0,0.04381]
[1752188918175,0.64607227,116190.0,116180.0,0.04381]
[1752188918479,1.85019227,116190.0,116180.0,0.04381]
[1752188918883,1.62952,116190.0,116180.0,0.04381]
[1752188919079,1.85019227,116190.0,116180.0,0.04381]
[1752188919375,1.85119227,116190.0,116180.0,0.04381]
[1752188922381,1.63052,116190.0,116180.0,0.04381]
[1752188922585,1.63052,116190.0,116180.0,0.09312933]
[1752188922780,1.85119227,116190.0,116180.0,0.09312933]
[1752188923784,1.23752,116190.0,116180.0,0.15612933]
[1752188927383,1.45819227,116190.0,116180.0,0.15612933]
[1752188928177,1.81899227,116190.0,116180.0,0.15612933]
[1752188928483,1.45819227,116190.0,116180.0,0.15612933]
[1752188931277,1.45819227,116190.0,116180.0,0.16958717]
[1752188931482,1.45819227,116190.0,116180.0,0.15612933]
[1752188931685,1.45819227,116190.0,116180.0,0.16958714]
[1752188931888,1.81899227,116190.0,116180.0,0.16958714]
[1752188934486,1.85099227,116190.0,116180.0,0.13788714]
[1752188935585,1.85099227,116190.0,116180.0,0.03115714]
[1752188935790,0.0430311,116180.0,116160.0,0.04532169]
[1752188935986,2.00530454,116170.0,116160.0,0.04915908]
[1752188936291,2.00530454,116170.0,116160.0,0.00172169]
[1752188936292,1.84773227,116170.0,116160.0,0.00172169]
[1752188936493,1.84773227,116170.0,116160.0,0.04532169]
[1752188936879,1.84773227,116170.0,116160.0,0.04632169]
[1752188937292,1.84773227,116170.0,116160.0,0.04732169]
[1752188937687,1.84773227,116170.0,116160.0,0.07858169]
[1752188937893,1.84773227,116170.0,116160.0,0.07958169]
[1752188938095,1.84773227,116170.0,116160.0,0.11188169]
[1752188938294,1.84873227,116170.0,116160.0,0.10988169]
[1752188938592,1.84873227,116170.0,116160.0,0.11088169]
[1752188939779,1.62806,116170.0,116160.0,0.10888169]
[1752188939980,1.84873227,116170.0,116160.0,0.10888169]
[1752188941982,1.62806,116170.0,116160.0,0.10888169]
[1752188942187,1.84873227,116170.0,116160.0,0.10888169]
[1752188944090,1.84873227,116170.0,116160.0,0.07762169]
[1752188951905,1.62806,116170.0,116160.0,0.07762169]
[1752188952098,1.84873227,116170.0,116160.0,0.07762169]
[1752188956503,1.84873227,116170.0,116160.0,0.10180554]
[1752188956997,1.84873227,116170.0,116160.0,0.07762169]
[1752188958298,2.60234084,116170.0,116150.0,0.02320571]
[1752188958602,0.86444454,116160.0,116150.0,0.02320571]
[1752188959401,0.4231,116160.0,116150.0,0.06680571]
[1752188959602,0.64377227,116160.0,116150.0,0.13190571]
[1752188959797,0.64377227,116160.0,116150.0,0.16316571]
[1752188960004,0.3608,116160.0,116150.0,0.16416571]
[1752188960205,0.58147227,116160.0,116150.0,0.16416571]
[1752188960902,0.80214454,116160.0,116150.0,0.09970571]
[1752188961102,0.86584454,116160.0,116150.0,0.09970571]
[1752188961904,0.64517227,116160.0,116150.0,0.10070571]
[1752188963205,0.65360572,116160.0,116150.0,0.10070571]
[1752188964906,0.43293345,116160.0,116150.0,0.10070571]
[1752188965097,0.65360572,116160.0,116150.0,0.10070571]
[1752188966005,0.65360572,116160.0,116150.0,0.13140571]
[1752188966397,0.3608,116160.0,116150.0,0.16227571]
[1752188966595,0.58147227,116160.0,116150.0,0.16227571]
[1752188966796,1.59606,116170.0,116150.0,0.38294798]
[1752188967006,1.81673227,116170.0,116160.0,0.13749]
[1752188968000,1.81773227,116170.0,116160.0,0.13749]
[1752188968200,1.82631249,116170.0,116160.0,0.13749]
[1752188969208,1.82631249,116170.0,116160.0,0.07652]
[1752188969507,1.85881249,116170.0,116160.0,0.07652]
[1752188971909,1.63814022,116170.0,116160.0,0.07652]
[1752188972104,1.85881249,116170.0,116160.0,0.07652]
[1752188974207,1.85881249,116170.0,116160.0,0.10739]
[1752188974613,1.85881249,116170.0,116160.0,0.13859]
[1752188976003,1.85881249,116170.0,116160.0,0.07652]
[1752188977617,1.85881249,116170.0,116160.0,0.10072857]
[1752188977809,1.85881249,116170.0,116160.0,0.07652]
[1752188978216,1.85881249,116170.0,116160.0,0.13159847]
[1752188978416,1.85881249,116170.0,116160.0,0.13749]
[1752188979717,1.85881249,116170.0,116160.0,0.10739]
[1752188980112,1.85881249,116170.0,116160.0,0.07652]
[1752188982214,1.78763227,116170.0,116160.0,0.10739]
[1752188982418,0.003,116170.0,116160.0,0.36046227]
[1752188982824,0.003,116170.0,116160.0,0.36114227]
[1752188983320,0.003,116170.0,116160.0,0.14047]
[1752188983519,0.003,116170.0,116160.0,0.13979]
[1752188983719,0.22367227,116170.0,116160.0,0.13979]
[1752188986222,0.22367227,116170.0,116160.0,0.15325045]
[1752188987222,0.58447227,116170.0,116160.0,0.07652]
[1752188987420,0.61737227,116170.0,116160.0,0.07652]
[1752188987721,1.08612044,116170.0,116150.0,0.06882571]
[1752188988022,2.06698454,116160.0,116150.0,0.06882571]
[1752188988422,2.23913564,116160.0,116150.0,0.02320571]
[1752188989620,2.23913564,116160.0,116150.0,0.02420571]
[1752188990015,2.23913564,116160.0,116150.0,0.02520571]
[1752188991026,2.23913564,116160.0,116150.0,0.02420571]
[1752188991227,2.24013564,116160.0,116150.0,0.02420571]
[1752188991722,2.24013564,116160.0,116150.0,0.02320571]
[1752188998635,2.24013564,116160.0,116150.0,0.04737324]
[1752188998934,2.24013564,116160.0,116150.0,0.02320571]
[1752189001434,2.24013564,116160.0,116150.0,0.06570571]
[1752189001934,2.24013564,116160.0,116150.0,0.02320571]
[1752189002542,0.1721659,116150.0,116140.0,0.00037]
[1752189002840,0.88544909,116150.0,116140.0,0.00037]
[1752189003235,0.81733817,116150.0,116140.0,0.00037]
[1752189004037,0.81733817,116150.0,116140.0,0.00137]
[1752189004934,0.81733817,116150.0,116140.0,0.00237]
[1752189005739,0.81833817,116150.0,116140.0,0.00137]
[1752189006940,0.81833817,116150.0,116140.0,0.00037]
[1752189007838,0.88740618,116150.0,116140.0,0.00037]
[1752189011137,0.1721955,116130.0,116120.0,0.00172228]
[1752189011347,2.53526004,116130.0,116120.0,0.00172228]
[1752189011641,2.36306454,116130.0,116120.0,0.04422228]
[1752189011836,2.14239227,116130.0,116120.0,0.10824228]
[1752189012431,2.36706454,116130.0,116120.0,0.14014228]
[1752189012839,2.36306454,116130.0,116120.0,0.14014228]
[1752189013039,2.36606454,116130.0,116120.0,0.14214228]
[1752189014039,2.53826004,116130.0,116120.0,0.06822228]
[1752189014237,2.57066004,116130.0,116120.0,0.03432228]
[1752189014543,2.60326004,116130.0,116120.0,0.03432228]
[1752189016043,2.60326004,116130.0,116120.0,0.00172228]
[1752189016243,2.61171514,116130.0,116120.0,0.00172228]
[1752189018250,0.1722104,116120.0,116110.0,0.1068]
[1752189018449,0.78498267,116120.0,116110.0,0.1068]
[1752189019140,0.78498267,116120.0,116110.0,0.08828447]
[1752189019341,0.78498267,116120.0,116110.0,0.1068]
[1752189019736,0.78598267,116120.0,116110.0,0.1068]
[1752189020647,0.78698267,116120.0,116110.0,0.1068]
[1752189020945,0.78898267,116120.0,116110.0,0.1068]
[1752189023052,0.3961,116120.0,116110.0,0.1068]
[1752189023249,0.58547227,116120.0,116110.0,0.13822]
[1752189026954,0.75768257,116120.0,116110.0,0.13822]
[1752189027958,0.75768257,116120.0,116110.0,0.1068]
[1752189028255,0.79018257,116120.0,116110.0,0.1068]
[1752189028651,0.61797227,116120.0,116110.0,0.1068]
[1752189028853,0.004,116120.0,116110.0,0.52787747]
[1752189029146,1.19160737,116130.0,116110.0,0.93300637]
[1752189029147,0.002,116130.0,116110.0,0.93300637]
[1752189029352,0.002,116130.0,116120.0,0.32168227]
[1752189029553,0.002,116130.0,116120.0,0.10169]
[1752189029747,0.002,116130.0,116120.0,0.10101]
[1752189029947,0.22267227,116130.0,116120.0,0.10101]
[1752189030151,0.002,116130.0,116120.0,0.10101]
[1752189030456,0.002,116130.0,116120.0,0.28668444]
[1752189030656,0.002,116130.0,116120.0,0.86815671]
[1752189030853,0.42986801,116150.0,116140.0,0.2427907]
[1752189031156,0.06906801,116150.0,116140.0,0.07061]
[1752189031348,1.18111227,116160.0,116140.0,0.29128227]
[1752189031546,1.18111227,116160.0,116140.0,0.02818]
[1752189031746,1.18111227,116160.0,116150.0,0.07061]
[1752189032153,1.18107227,116160.0,116150.0,0.07061]
[1752189032349,1.18307227,116160.0,116150.0,0.07061]
[1752189033258,0.58347227,116160.0,116150.0,0.10201]
[1752189033558,0.82223227,116160.0,116150.0,0.1107915]
[1752189033960,0.82223227,116160.0,116150.0,0.13471]
[1752189034461,0.82023227,116160.0,116150.0,0.13471]
[1752189034761,0.82123227,116160.0,116150.0,0.13471]
[1752189034957,0.44234454,116160.0,116150.0,0.13471]
[1752189035151,0.80314454,116160.0,116150.0,0.13471]
[1752189040865,0.83444454,116160.0,116150.0,0.13471]
[1752189041265,0.83444454,116160.0,116150.0,0.10331]
[1752189041468,0.1721668,116150.0,116140.0,0.04243]
[1752189041766,1.41607907,116150.0,116140.0,0.04243]
[1752189042468,1.24391227,116150.0,116140.0,0.04243]
[1752189043870,1.31303042,116150.0,116140.0,0.04343]
[1752189045764,1.24983042,116150.0,116140.0,0.10231]
[1752189045971,1.24975042,116150.0,116140.0,0.13561]
[1752189046469,0.88895042,116150.0,116140.0,0.13561]
[1752189047570,1.24975042,116150.0,116140.0,0.13561]
[1752189049373,0.88895042,116150.0,116140.0,0.13561]
[1752189049671,1.24975042,116150.0,116140.0,0.13561]
[1752189051671,0.65059042,116150.0,116140.0,0.13561]
[1752189051871,1.24955042,116150.0,116140.0,0.13561]
[1752189053670,1.24955042,116150.0,116140.0,0.10231]
[1752189053871,0.68169042,116150.0,116140.0,0.10231]
[1752189054076,1.28061042,116150.0,116140.0,0.10231]
[1752189054569,1.45277632,116150.0,116140.0,0.04343]
[1752189054774,1.31251042,116150.0,116140.0,0.04343]
[1752189058476,1.48467632,116150.0,116140.0,0.04343]
[1752189058979,1.48467632,116150.0,116140.0,0.001]
[1752189059180,1.31251042,116150.0,116140.0,0.001]
[1752189059373,1.31251042,116150.0,116140.0,0.04538]
[1752189060266,1.31239042,116150.0,116140.0,0.04538]
[1752189063675,1.48455632,116150.0,116140.0,0.001]
[1752189064580,0.1721956,116130.0,116120.0,0.00172228]
[1752189064773,2.36022454,116130.0,116120.0,0.00172228]
[1752189065076,2.59692014,116130.0,116120.0,0.00172228]
[1752189065377,2.81759241,116130.0,116120.0,0.00172228]
[1752189065772,2.59692014,116130.0,116120.0,0.00172228]
[1752189067374,0.2152634,116120.0,116100.0,0.09390582]
[1752189067580,1.81061227,116110.0,116100.0,0.09390582]
[1752189067769,1.81061227,116110.0,116100.0,0.12438582]
[1752189068886,1.81061227,116110.0,116100.0,0.12738582]
[1752189069780,1.81061227,116110.0,116100.0,0.12938582]
[1752189070170,1.81939331,116110.0,116100.0,0.12938582]
[1752189070782,1.59872104,116110.0,116100.0,0.12938582]
[1752189070981,1.78749331,116110.0,116100.0,0.12938582]
[1752189071285,1.56682104,116110.0,116100.0,0.12938582]
[1752189071482,1.78749331,116110.0,116100.0,0.12938582]
[1752189078893,1.78749331,116110.0,116100.0,0.02302582]
[1752189079086,2.47482318,116110.0,116080.0,0.12756016]
[1752189079282,0.58147227,116090.0,116080.0,0.12756016]
[1752189079587,1.77835227,116090.0,116080.0,0.09708016]
[1752189079775,1.81025227,116090.0,116080.0,0.09708016]
[1752189079979,1.77835227,116090.0,116080.0,0.12756016]
[1752189080886,1.77835227,116090.0,116080.0,0.10988288]
[1752189081286,1.77835227,116090.0,116080.0,0.14238288]
[1752189081487,1.77935227,116090.0,116080.0,0.14238288]
[1752189081884,1.77935227,116090.0,116080.0,0.18956145]
[1752189082086,1.77935227,116090.0,116080.0,0.14238288]
[1752189082688,1.81095227,116090.0,116080.0,0.11190288]
[1752189083785,1.88011395,116090.0,116080.0,0.11190288]
[1752189083985,1.88011395,116090.0,116080.0,0.13917288]
[1752189085187,1.84851395,116090.0,116080.0,0.13917288]
[1752189093796,1.84851395,116090.0,116080.0,0.07940288]
[1752189093996,1.91251395,116090.0,116080.0,0.07940288]
[1752189094595,1.91251395,116090.0,116080.0,0.00172288]
[1752189094994,2.30544102,116090.0,116080.0,0.00172288]
[1752189095300,0.57055444,116080.0,116050.0,0.04052]
[1752189095598,0.58147227,116060.0,116050.0,0.04052]
[1752189096098,0.61367227,116060.0,116050.0,0.04052]
[1752189096900,0.61367227,116060.0,116050.0,0.07322]
[1752189097092,0.62228523,116060.0,116050.0,0.07322]
[1752189097293,0.62228523,116060.0,116050.0,0.07622]
[1752189098289,0.65298523,116060.0,116050.0,0.07622]
[1752189098900,0.65298523,116060.0,116050.0,0.0199074]
[1752189099201,0.65298523,116060.0,116050.0,0.0604274]
[1752189101204,0.65298523,116060.0,116050.0,0.04252]
[1752189102208,0.65298523,116060.0,116050.0,0.06622892]
[1752189102405,0.65598523,116060.0,116050.0,0.04052]
[1752189102610,0.65598523,116060.0,116050.0,0.0642213]
[1752189102905,0.62528523,116060.0,116050.0,0.1244913]
[1752189103100,0.62528523,116060.0,116050.0,0.10079]
[1752189104308,0.62428523,116060.0,116050.0,0.10079]
[1752189104709,0.62428523,116060.0,116050.0,0.10279]
[1752189105411,0.62528523,116060.0,116050.0,0.10079]
[1752189105808,0.62528523,116060.0,116050.0,0.07352]
[1752189106001,0.65688523,116060.0,116050.0,0.07352]
[1752189106912,0.40461296,116060.0,116050.0,0.10079]
[1752189107210,0.37241296,116060.0,116050.0,0.10079]
[1752189107405,0.22367227,116060.0,116050.0,0.13259]
[1752189107612,0.58447227,116060.0,116050.0,0.13259]
[1752189114921,0.61777227,116060.0,116050.0,0.13259]
[1752189117214,0.61777227,116060.0,116050.0,0.10079]
[1752189118219,0.64937227,116060.0,116050.0,0.10079]
[1752189118518,0.82167167,116060.0,116050.0,0.07352]
[1752189118824,1.12849604,116060.0,116040.0,0.04461347]
[1752189119026,2.23385874,116050.0,116040.0,0.00172347]
[1752189120713,2.06154454,116050.0,116040.0,0.00172347]
[1752189120921,1.84087227,116050.0,116040.0,0.04461347]
[1752189121821,1.84187227,116050.0,116040.0,0.04461347]
[1752189122027,1.84387227,116050.0,116040.0,0.07177347]
[1752189122224,1.81197227,116050.0,116040.0,0.07177347]
[1752189122521,1.81197227,116050.0,116040.0,0.13597347]
[1752189126021,1.81197227,116050.0,116040.0,0.07571347]
[1752189126221,1.84207227,116050.0,116040.0,0.07571347]
[1752189126728,2.06274454,116050.0,116040.0,0.07571347]
[1752189127627,1.84207227,116050.0,116040.0,0.07571347]
[1752189130432,2.23504164,116050.0,116040.0,0.04461347]
[1752189130630,2.23504164,116050.0,116040.0,0.00172347]
[1752189139028,0.1723158,116040.0,116020.0,0.04289]
[1752189139336,1.99212177,116030.0,116010.0,0.063]
[1752189139532,0.44134454,116020.0,116010.0,0.07459]
[1752189139732,0.25187227,116020.0,116010.0,0.07459]
[1752189140328,0.32004812,116020.0,116010.0,0.07459]
[1752189141237,0.32004812,116020.0,116010.0,0.07959]
[1752189141742,0.32004812,116020.0,116010.0,0.07859]
[1752189141941,0.68084812,116020.0,116010.0,0.07859]
[1752189142137,0.32004812,116020.0,116010.0,0.07859]
[1752189142333,0.50108657,116020.0,116010.0,0.04689]
[1752189142539,0.72024497,116020.0,116010.0,0.04589]
[1752189142741,0.94091724,116020.0,116010.0,0.04589]
[1752189143544,1.11325884,116020.0,116010.0,0.04589]
[1752189143845,1.11325884,116020.0,116010.0,0.003]
[1752189144043,1.11325884,116020.0,116010.0,0.0500132]
[1752189144238,1.11325884,116020.0,116010.0,0.003]
[1752189144439,0.89258657,116020.0,116010.0,0.003]
[1752189145239,0.72024497,116020.0,116010.0,0.003]
[1752189145746,0.72024497,116020.0,116010.0,0.0457]
[1752189146444,0.89258667,116020.0,116010.0,0.0457]
[1752189146644,1.11325894,116020.0,116010.0,0.0457]
[1752189147147,0.94091724,116020.0,116010.0,0.0457]
[1752189147343,1.11325894,116020.0,116010.0,0.0457]
[1752189147544,1.11325894,116020.0,116010.0,0.003]
[1752189148751,0.94091724,116020.0,116010.0,0.003]
[1752189148951,1.11325894,116020.0,116010.0,0.0457]
[1752189149251,0.4995727,116020.0,116010.0,0.003]
[1752189149440,1.6639527,116020.0,116010.0,0.07358]
[1752189149635,1.85342497,116020.0,116010.0,0.13908]
[1752189152850,1.88592497,116020.0,116010.0,0.13908]
[1752189153051,2.05826647,116020.0,116010.0,0.13908]
[1752189153251,2.27893874,116020.0,116010.0,0.0784]
[1752189153653,2.31183874,116020.0,116010.0,0.0784]
[1752189154442,2.31183874,116020.0,116010.0,0.003]
[1752189155556,2.13949724,116020.0,116010.0,0.003]
[1752189155859,2.13949724,116020.0,116010.0,0.0457]
[1752189156350,1.91882497,116020.0,116010.0,0.0457]
[1752189156551,1.91882497,116020.0,116010.0,0.0774]
[1752189157758,2.09116647,116020.0,116010.0,0.0774]
[1752189158460,2.31183874,116020.0,116010.0,0.0774]
[1752189159759,2.13949724,116020.0,116010.0,0.0774]
[1752189160356,1.49266497,116020.0,116010.0,0.12293104]
[1752189160860,1.49266497,116020.0,116010.0,0.15363104]
[1752189177468,1.71333724,116020.0,116010.0,0.15363104]
[1752189177665,2.07413724,116020.0,116010.0,0.15363104]
[1752189178174,0.1723564,116010.0,116000.0,0.00172406]
[1752189178374,0.86564454,116010.0,116000.0,0.00172406]
[1752189178872,1.03800094,116010.0,116000.0,0.00172406]
[1752189179370,1.03800094,116010.0,116000.0,0.00372406]
[1752189179761,1.03800094,116010.0,116000.0,0.00672406]
[1752189179973,0.86564454,116010.0,116000.0,0.00672406]